{"text_format":"1","workbook":"xlsx","n_sheets":11,"sheets":["Introducción","Instrucciones","Preguntas frecuentes","Guía para la PrEP","Gestión del programa","Implementación del programa","Resultados del programa ","Resumen de calificaciones","Siguientes pasos","Bibliografía","Acrónimos"],"not_rendered":{"charts":6,"images":1,"macros":1,"external_links":0,"defined_names":25,"comments":0,"pivot_tables":0},"unopened":[],"bounds":{"document_bytes":16777216,"sheet_cells":100000,"rows_first":2000,"rows_last":500,"rows_between":2000,"halvings":0,"cell_chars":16384,"cell_head_chars":4096},"cells_cut":0,"cells_raw":0,"read":"whole","date_system":"1900"}

{"sheet":"Introducción","index":0,"n_rows":2,"n_cols":3,"rows_kept":2,"cut":false,"hidden":false,"merged":[[1,2,1,22]]}
[]
[null,null,"¿Cuáles son las herramientas de autoevaluación para la prevención del VIH (PSAT)?"]

{"sheet":"Instrucciones","index":1,"n_rows":57,"n_cols":19,"rows_kept":57,"cut":false,"hidden":false,"merged":[[2,2,2,17]]}
[]
[]
[null,null,"Cómo completar la herramientas de autoevaluación para la prevención del VIH (PSAT)"]
[]
[]
[]
[]
[]
[]
[]
[]
[]
[]
[]
[]
[]
[]
[]
[]
[]
[]
[]
[]
[]
[]
[]
[]
[]
[]
[]
[]
[]
[]
[]
[]
[]
[]
[]
[]
[]
[]
[]
[]
[]
[]
[]
[]
[]
[]
[]
[]
[]
[]
[]
[]
[]
[null,null,null,null,null,null,null,null,null,null,null,null,null,null,null,null,null,null,"I"]

{"sheet":"Preguntas frecuentes","index":2,"n_rows":2,"n_cols":3,"rows_kept":2,"cut":false,"hidden":false,"merged":[[1,2,1,22]]}
[]
[null,null,"Preguntas frecuentes"]

{"sheet":"Guía para la PrEP","index":3,"n_rows":2,"n_cols":3,"rows_kept":2,"cut":false,"hidden":false,"merged":[[1,2,1,22]]}
[]
[null,null,"Oferta de profilaxis preexposición (PrEP)"]

{"sheet":"Gestión del programa","index":4,"n_rows":48,"n_cols":16,"rows_kept":48,"cut":false,"hidden":false,"merged":[[11,2,19,2],[23,2,23,10],[33,2,33,10],[11,9,19,9],[20,9,22,9],[24,9,26,9],[27,9,32,9],[1,2,1,9],[3,3,3,4],[4,2,4,10],[5,2,10,2],[6,9,10,9],[34,9,42,9],[20,2,22,2],[24,2,26,2],[27,2,32,2],[34,2,42,2]]}
[]
[null,null,"Gestión del programa"]
[]
[null,null,"Elemento","Criterios",null,"N/A","Ausente","Presente pero no óptimo","Presente y funcionando bien","Promedio del elemento","Comentarios (si procede)","Absent","Present","Optimal","Average","Sustainability Single Figure"]
[null,null,"Estrategia, política y regulación"]
[null,null,"Estrategia nacional de prevención del VIH","○","La PrEP como parte de la prevención integral del VIH en la estrategia nacional para el VIH",null,null,null,null,null,null,{"$f":"IF(ISBLANK(G6),0,1)","v":0},{"$f":"IF(ISBLANK(H6),0,3)","v":0},{"$f":"IF(ISBLANK(I6),0,5)","v":0},{"$f":"IFERROR(ROUND(AVERAGEIF(L6:N11,\"<>0\",L6:N11),0),\"-\")","v":"-"}]
[null,null,null,"○","La PrEP oral y la PrEP de acción prolongada (anillo de dapivirina e inyectables) se incluyen como parte de la prevención integral del VIH en la estrategia nacional para el VIH",null,null,null,null,{"$f":"IFERROR(O6,\"-\")","v":"-"},null,0,0,0]
[null,null,null,"○","Hay información detallada para servir como guía en la implementación de los programas de PrEP",null,null,null,null,null,null,0,0,0]
[null,null,null,"○","El enfoque de la implementación de la PrEP está basado en las directrices de la OMS o en la experiencia a nivel nacional",null,null,null,null,null,null,0,0,0]
[null,null,null,"○","El programa de PrEP está integrado en el protocolo rutinario del sistema de salud.",null,null,null,null,null,null,0,0,0,null,{"$f":"IF(MAX(L10:N10)=0,\"\",MAX(L10:N10))","v":""}]
[null,null,null,"○","La PrEP está disponible para todas las personas en riesgo sustancial   ",null,null,null,null,null,null,0,0,0]
[null,null,"Directrices clínicas a nivel nacional","○","Existen directrices clínicas sobre la PrEP a nivel nacional, o las directrices sobre la PrEP se incluyen en las directrices nacionales de la TAR ",null,null,null,null,{"$f":"IFERROR(O12,\"-\")","v":"-"},null,0,0,0,{"$f":"IFERROR(ROUND(AVERAGEIF(L12:N20,\"<>0\",L12:N20),0),\"-\")","v":"-"}]
[null,null,null,"○","Hay información detallada para guiar a los proveedores de PrEP en alguna de las siguientes áreas: análisis de elegibilidad e iniciación, pruebas de laboratorio, cronograma de seguimiento o asesoramiento.",null,null,null,null,null,null,0,0,0]
[null,null,null,"○","Las directrices han sido aprobadas o aceptadas por las asociaciones de proveedores.",null,null,null,null,null,null,0,0,0]
[null,null,null,"○","Las directrices incluyen orientación sobre quién puede proporcionar la PrEP y la formación necesaria para ello.",null,null,null,null,null,null,0,0,0]
[null,null,null,"○","Las directrices están basadas en las de la OMS y en la experiencia a nivel nacional. ",null,null,null,null,null,null,0,0,0]
[null,null,null,"○","Las directrices son de aplicación y están disponibles para todos los proveedores de PrEP (tanto del sector público como del privado)",null,null,null,null,null,null,0,0,0]
[null,null,null,"○","Las directrices incluyen el fomento del seguimiento clínico para las personas que compran PrEP online.",null,null,null,null,null,null,0,0,0]
[null,null,null,"○","Las directrices incluyen la PrEP oral diaria, la PrEP dispensada en eventos concretos y los métodos de PrEP de acción prolongada (anillo de dapivirina, inyectables).",null,null,null,null,null,null,0,0,0]
[null,null,null,"○","Se han incorporado las medidas de prevención y control de la  COVID-19 a todas las estrategias, planes y directrices de prevención del VIH y de PrEP.",null,null,null,null,null,null,0,0,0]
[null,null,"Situación reglamentaria de los medicamentos de PrEP","○","La aprobación reglamentaria de más de un producto (incluyendo la TAR genérica) para uso preventivo existe o se aplican exenciones",null,null,null,null,{"$f":"IFERROR(O21,\"-\")","v":"-"},null,0,0,0,{"$f":"IFERROR(ROUND(AVERAGEIF(L21:N23,\"<>0\",L21:N23),0),\"-\")","v":"-"}]
[null,null,null,"○","Se ha creado una licitación pública para los productos aprobados.",null,null,null,null,null,null,0,0,0]
[null,null,null,"○","Las modalidades de PrEP se incluyen en la lista de medicamentos esenciales (LME).",null,null,null,null,null,null,0,0,0]
[null,null,"Liderazgo y coordinación"]
[null,null,"Liderazgo y rendición de cuentas","○","La persona que dirige la PrEP tiene un liderazgo y autoridad sustanciales dentro del gobierno nacional",null,null,null,null,{"$f":"IFERROR(O25,\"-\")","v":"-"},null,{"$f":"IF(ISBLANK(G25),0,1)","v":0},{"$f":"IF(ISBLANK(H25),0,3)","v":0},{"$f":"IF(ISBLANK(I25),0,5)","v":0},{"$f":"IFERROR(ROUND(AVERAGEIF(L25:N27,\"<>0\",L25:N27),0),\"-\")","v":"-"}]
[null,null,null,"○","La persona que dirige la PrEP proporciona liderazgo y supervisión para la implementación y el seguimiento general del programa de PrEP a nivel nacional.",null,null,null,null,null,null,0,0,0]
[null,null,null,"○","Los implementadores financiados por donantes envían informes al miembro del gobierno que dirige los programas de PrEP con regularidad.",null,null,null,null,null,null,0,0,0]
[null,null,"Participación de los interesados","○","Todos los actores que participan en la implementación de la PrEP tienen unos roles y responsabilidades claros",null,null,null,null,{"$f":"IFERROR(O28,\"-\")","v":"-"},null,0,0,0,{"$f":"IFERROR(ROUND(AVERAGEIF(L28:N33,\"<>0\",L28:N33),0),\"-\")","v":"-"}]
[null,null,null,"○","La sociedad civil participa en las decisiones clave.",null,null,null,null,null,null,0,0,0]
[null,null,null,"○","Los usuarios finales de la PrEP participan en las decisiones clave, y esto incluye la participación explícita de los miembros de los grupos de población clave a los que se dirige (HSH, trabajadoras sexuales, jóvenes, etc.).",null,null,null,null,null,null,0,0,0]
[null,null,null,"○","La coordinación a nivel nacional la lleva a cabo un grupo técnico de trabajo con unos Términos de Referencia (TR) claros.",null,null,null,null,null,null,0,0,0]
[null,null,null,"○","En el GTT tienen representación los consejos nacionales de SIDA, los fabricantes de medicamentos, el organismo regulador de medicamentos, las asociaciones profesionales (consejos médicos), los implementadores locales (consejerías regionales de salud), los donantes, las organizaciones internacionales y la sociedad civil.",null,null,null,null,null,null,0,0,0]
[null,null,null,"○","Se realiza una coordinación multisectorial con otros ministerios/departamentos (ej.: finanzas, fuerzas del orden, educación, desarrollo, etc.).",null,null,null,null,null,null,0,0,0]
[null,null,"Financiación",null,null,null,null,null,null,null,null,0,0,0]
[null,null,"Presupuesto","○","Hay un presupuesto nacional para la PrEP:",null,null,null,null,{"$f":"IFERROR(O35,\"-\")","v":"-"},null,0,0,0,{"$f":"IFERROR(ROUND(AVERAGEIF(L35:N43,\"<>0\",L35:N43),0),\"-\")","v":"-"}]
[null,null,null,"○","Se ha llevado a cabo un cálculo de costes, que estima de manera realista el presupuesto para todos los componentes del paquete PrEP: modalidades de PrEP (fármaco, anillo, inyectable), pruebas de laboratorio, recursos humanos, estrategia de comunicación, sistema de medición y evaluación, etc. ",null,null,null,null,null,null,0,0,0]
[null,null,null,"○","El presupuesto de la PrEP (incluidas las pruebas, la comunicación y la formación) se integra en el presupuesto general para la actividad pertinente.",null,null,null,null,null,null,0,0,0]
[null,null,null,"○","Se dispone de financiación nacional para una buena parte del programa, y los donantes se han comprometido a aportar lo que falte según sea necesario.",null,null,null,null,null,null,0,0,0]
[null,null,null,"○","Los organismos de financiación / colaboradores están coordinados.",null,null,null,null,null,null,0,0,0]
[null,null,null,"○","Existen presupuestos a nivel regional. ",null,null,null,null,null,null,0,0,0]
[null,null,null,"○","Se han identificado las lagunas presupuestarias y se han puesto en marcha planes para solucionarlas.",null,null,null,null,null,null,0,0,0]
[null,null,null,"○","Una buena parte del programa PrEP recibe financiación a nivel nacional (mínimo >10 %).",null,null,null,null,null,null,0,0,0,null,{"$f":"IF(MAX(L42:N42)=0,\"\",MAX(L42:N42))","v":""}]
[null,null,null,"○","Hay una política en vigor que permite que el programa PrEP reciba financiación a nivel nacional de forma continuada.",null,null,null,null,null,null,0,0,0,null,""]
[]
[]
[null,null,null,null,null,null,null,null,null,null,null,null,{"$f":"COUNTIF(O6:O43,\"-\")","v":6}]
[null,null,null,null,null,null,null,null,null,null,null,null,{"$f":"COUNTIF(O6:O43,\">0\")","v":0}]
[null,null,null,null,null,null,null,null,null,null,null,"Sheet Completion",{"$f":"M47/(M46+M47)","v":0},{"$f":"1-M48","v":1}]

{"sheet":"Implementación del programa","index":5,"n_rows":157,"n_cols":16,"rows_kept":157,"cut":false,"hidden":false,"merged":[[145,9,152,9],[71,9,76,9],[77,9,79,9],[80,9,90,9],[91,9,99,9],[100,9,109,9],[110,9,115,9],[116,9,117,9],[71,2,76,2],[77,2,79,2],[119,9,127,9],[128,9,138,9],[139,9,144,9],[139,2,144,2],[57,9,62,9],[63,9,66,9],[67,9,69,9],[44,2,51,2],[53,2,56,2],[57,2,62,2],[63,2,66,2],[67,2,69,2],[39,2,43,2],[5,9,11,9],[39,9,43,9],[44,9,51,9],[53,9,56,9],[17,9,25,9],[26,9,33,9],[12,9,16,9],[35,9,38,9],[35,2,38,2],[1,2,1,7],[5,2,11,2],[12,2,16,2],[17,2,25,2],[26,2,33,2],[145,2,152,2],[80,2,90,2],[91,2,99,2],[100,2,109,2],[110,2,115,2],[116,2,117,2],[119,2,127,2],[128,2,138,2]]}
[]
[]
[]
[null,null,"Elemento","Criterios",null,"N/A","Ausente","Presente pero no óptimo","Presente y funcionando bien","Promedio del elemento","Comentarios (si procede)","Absent","Present","Optimal","Average","Sustainability Single Figure"]
[null,null,"Definición de objetivos y planificación"]
[null,null,"Planes de trabajo para la implementación",null,"Políticas y planes de trabajo",null,null,null,null,{"$f":"IFERROR(O6,\"-\")","v":"-"},null,null,null,null,{"$f":"IFERROR(ROUND(AVERAGEIF(L7:N12,\"<>0\",L7:N12),0),\"-\")","v":"-"}]
[null,null,null,"○","Existen planes de trabajo a nivel nacional y regional.",null,null,null,null,null,null,{"$f":"IF(ISBLANK(G7),0,1)","v":0},{"$f":"IF(ISBLANK(H7),0,3)","v":0},{"$f":"IF(ISBLANK(I7),0,5)","v":0}]
[null,null,null,"○","Las poblaciones objetivo participan en el desarrollo de los planes de trabajo.",null,null,null,null,null,null,0,0,0]
[null,null,null,"○","Existe una clara delegación de responsabilidades y se han definido las líneas de reporte.",null,null,null,null,null,null,0,0,0]
[null,null,null,"○","Existen cronogramas y mecanismos de presentación de informes.",null,null,null,null,null,null,0,0,0]
[null,null,null,"○","Existen mecanismos de revisión y seguimiento.",null,null,null,null,null,null,0,0,0]
[null,null,null,"○","Las acciones y los elementos de programa tienen un vínculo claro con las líneas presupuestarias.",null,null,null,null,null,null,0,0,0]
[null,null,"Evaluación de la población en riesgo","○","Las poblaciones prioritarias están determinadas por el perfil epidémico del VIH, la incidencia del VIH, la prevalencia y la distribución geográfica del riesgo.",null,null,null,null,{"$f":"IFERROR(O13,\"-\")","v":"-"},null,0,0,0,{"$f":"IFERROR(ROUND(AVERAGEIF(L13:N17,\"<>0\",L13:N17),0),\"-\")","v":"-"}]
[null,null,null,"○","Los miembros de los grupos prioritarios y de población clave participan en la evaluación de las poblaciones en riesgo.",null,null,null,null,null,null,0,0,0]
[null,null,null,"○","La evaluación sobre dónde y cómo ampliar la implementación se realiza mediante herramientas que están disponibles para todo el mundo (ej.: herramientas OPTIONS Plan4PrEP, PrEP-It, herramientas de la OMS para la implementación de la PrEP).        ",null,null,null,null,null,null,0,0,0]
[null,null,null,"○","El enfoque no es estigmatizante: los documentos públicos siempre se refieren a comportamientos de alto riesgo y no nombran a los grupos de población clave.",null,null,null,null,null,null,0,0,0]
[null,null,null,"○","A nivel regional, los datos se desglosan por género, grupo de población clave y edad, con franjas de edad más pequeñas para las poblaciones más jóvenes (15-19, 20-24, 25-29, etc.).",null,null,null,null,null,null,0,0,0]
[null,null," Objetivos de los indicadores","○","Se han establecido unos objetivos para los indicadores de resultados de los programas a nivel nacional y regional.",null,null,null,null,{"$f":"IFERROR(O18,\"-\")","v":"-"},null,0,0,0,{"$f":"IFERROR(ROUND(AVERAGEIF(L18:N26,\"<>0\",L18:N26),0),\"-\")","v":"-"}]
[null,null,null,"○","Los objetivos se basan en la incidencia y prevalencia del VIH a nivel nacional y regional, y en la evaluación de la población en riesgo.",null,null,null,null,null,null,0,0,0]
[null,null,null,"○","Los objetivos se basan en los datos de implementación del país (por ejemplo, en estudios demostrativos, si procede).",null,null,null,null,null,null,0,0,0]
[null,null,null,"○","Los objetivos se desglosan por género, grupo de población clave y edad, con franjas de edad más pequeñas para las poblaciones más jóvenes (15-19, 20-24, 25-29, etc.).",null,null,null,null,null,null,0,0,0]
[null,null,null,"○","Se han marcado unos plazos para el logro de los objetivos.",null,null,null,null,null,null,0,0,0]
[null,null,null,"○","Los objetivos están vinculados a las fuentes de presupuesto y financiación.",null,null,null,null,null,null,0,0,0]
[null,null,null,"○","Se han establecido los objetivos, la previsión y los costes del programa mediante métodos y herramientas basados en la evidencia (ej.: PrEP-IT 2.0).",null,null,null,null,null,null,0,0,0]
[null,null,null,"○","Los indicadores y objetivos están en consonancia con la normativa internacional (Plan de Emergencia del Presidente de los Estados Unidos para el Alivio del Sida -PEPFAR-, directrices de la OMS).",null,null,null,null,null,null,0,0,0]
[null,null,null,"○","Se dispone de un documento con orientación sobre el seguimiento y evaluación de la PrEP para utilizar como referencia.",null,null,null,null,null,null,0,0,0]
[null,null,"Estrategia de comunicación","○","Existe una estrategia de comunicación integral.",null,null,null,null,{"$f":"IFERROR(O27,\"-\")","v":"-"},null,0,0,0,{"$f":"IFERROR(ROUND(AVERAGEIF(L27:N34,\"<>0\",L27:N34),0),\"-\")","v":"-"}]
[null,null,null,"○","Los miembros de los grupos prioritarios y de población clave participan en el desarrollo de la estrategia de comunicación y los materiales de creación de demanda.",null,null,null,null,null,null,0,0,0]
[null,null,null,"○","La estrategia de comunicación incluye TANTO 1) la educación básica y la concienciación sobre la PrEP para la población en general y 2) la estrategia de creación de demanda para las personas de mayor riesgo, incluyendo información, educación y materiales de comunicación.",null,null,null,null,null,null,0,0,0]
[null,null,null,"○","El enfoque es inclusivo y no estigmatizante.",null,null,null,null,null,null,0,0,0]
[null,null,null,"○","Se han involucrado y movilizado múltiples canales para la PrEP (medios de comunicación, redes sociales, educación entre pares).",null,null,null,null,null,null,0,0,0]
[null,null,null,"○","Los mensajes de creación de demanda se han diferenciado para las poblaciones prioritarias, son sensibles a su realidad y no son estigmatizantes.",null,null,null,null,null,null,0,0,0]
[null,null,null,"○","La estrategia de comunicación de la PrEP forma parte de una estrategia de comunicación más amplia para el fomento de la salud sexual y reproductiva.",null,null,null,null,null,null,0,0,0]
[null,null,null,"○","Los materiales de comunicaciones se prueban en programas piloto.",null,null,null,null,null,null,0,0,0]
[null,null,"Suministro"]
[null,null,"Cuantificación de los productos básicos necesarios","○","La previsión de la oferta y la demanda se basa en las poblaciones en riesgo y los objetivos, y tiene en cuenta el crecimiento esperado del programa.",null,null,null,null,{"$f":"IFERROR(O36,\"-\")","v":"-"},null,{"$f":"IF(ISBLANK(G36),0,1)","v":0},{"$f":"IF(ISBLANK(H36),0,3)","v":0},{"$f":"IF(ISBLANK(I36),0,5)","v":0},{"$f":"IFERROR(ROUND(AVERAGEIF(L36:N39,\"<>0\",L36:N39),0),\"-\")","v":"-"}]
[null,null,null,"○","Incluye todos los componentes clínicos esenciales del programa PrEP, así como los suministros necesarios para dispensar la PrEP: diferentes modalidades de PrEP (fármaco, anillo, inyectable), pruebas de VIH, pruebas de CrCl, pruebas de VHB, otras pruebas de ITS, suministros de PF como preservativos, etc. ",null,null,null,null,null,null,0,0,0]
[null,null,null,"○","Se basa en los datos de utilización del proyecto a nivel nacional (si procede).",null,null,null,null,null,null,0,0,0]
[null,null,null,"○","A medida que el programa crece, se actualizan los datos de utilización para la cuantificación.",null,null,null,null,null,null,0,0,0]
[null,null,"Plan de aprovisionamiento de productos básicos","○","Se ha formalizado un contrato con un fabricante para la adquisición/suministro de componentes esenciales del paquete de servicios clínicos de PrEP.",null,null,null,null,{"$f":"IFERROR(O40,\"-\")","v":"-"},null,0,0,0,{"$f":"IFERROR(ROUND(AVERAGEIF(L40:N44,\"<>0\",L40:N44),0),\"-\")","v":"-"}]
[null,null,null,"○","El aprovisionamiento de suministros es fiable y adecuado para satisfacer el consumo actual, con margen para responder a una creciente demanda.",null,null,null,null,null,null,0,0,0]
[null,null,null,"○","El plan de aprovisionamiento está vinculado a las fuentes de presupuesto y financiación. ",null,null,null,null,null,null,0,0,0]
[null,null,null,"○","El plan de aprovisionamiento es plurianual.",null,null,null,null,null,null,0,0,0]
[null,null,null,"○","El aprovisionamiento de productos básicos se realiza a través de una licitación pública.",null,null,null,null,null,null,0,0,0]
[null,null,"Cadena de suministro / GLSI\n (gestión logística y sistema de información)","○","El suministro de componentes esenciales del paquete de servicios clínicos de PrEP y oros productos relacionados es ininterrumpido.",null,null,null,null,{"$f":"IFERROR(O45,\"-\")","v":"-"},null,0,0,0,{"$f":"IFERROR(ROUND(AVERAGEIF(L45:N52,\"<>0\",L45:N52),0),\"-\")","v":"-"}]
[null,null,null,"○","Se utiliza la cadena de distribución existente.",null,null,null,null,null,null,0,0,0]
[null,null,null,"○","Se observan buenas prácticas de distribución. ",null,null,null,null,null,null,0,0,0]
[null,null,null,"○","El inventario está bien gestionado: no hay roturas de stock y los medicamentos con fecha de caducidad se gestionan adecuadamente.",null,null,null,null,null,null,0,0,0]
[null,null,null,"○","Los productos básicos llegan a todas las instalaciones que dispensan PrEP (incluso si no dispensan TAR).",null,null,null,null,null,null,0,0,0]
[null,null,null,"○","Existen mecanismos de control de calidad.",null,null,null,null,null,null,0,0,0]
[null,null,null,"○","El volumen de productos de PrEP dispensados por grupo de población se utiliza para supervisar la cobertura.",null,null,null,null,null,null,0,0,0]
[null,null,null,"○","La GLSI proporciona una imagen precisa del estado de los productos de paquete PrEP en el país, y esto se evalúa periódicamente.",null,null,null,null,null,null,0,0,0]
[null,null,"Prestación de servicios",null,null,null,null,null,null,null,null,null,null,0]
[null,null,"Diferenciados","○","Los servicios de PrEP están disponibles en las instalaciones (se realiza una evaluación de la preparación de las instalaciones en todas aquellas que dispensan PrEP) ",null,null,null,null,{"$f":"IFERROR(O54,\"-\")","v":"-"},null,{"$f":"IF(ISBLANK(G54),0,1)","v":0},{"$f":"IF(ISBLANK(H54),0,3)","v":0},0,{"$f":"IFERROR(ROUND(AVERAGEIF(L54:N57,\"<>0\",L54:N57),0),\"-\")","v":"-"}]
[null,null,null,"○","Los servicios de PrEP están disponibles fuera de las instalaciones (servicios móviles).",null,null,null,null,null,null,0,0,0]
[null,null,null,"○","Los servicios de PrEP están disponibles a través de mecanismos dirigidos por la comunidad (contratos sociales, sociedad civil, etc.).",null,null,null,null,null,null,0,0,0]
[null,null,null,"○","Los servicios de PrEP incluyen la entrega de PrEP por pares.",null,null,null,null,null,null,0,0,0]
[null,null,"Integrados","○","Todas las opciones preventivas (incluida la PrEP) tienen conexiones en todos los puntos de realización de pruebas del VIH.",null,null,null,null,{"$f":"IFERROR(O58,\"-\")","v":"-"},null,0,0,0,{"$f":"IFERROR(ROUND(AVERAGEIF(L58:N63,\"<>0\",L58:N63),0),\"-\")","v":"-"}]
[null,null,null,"○","La PrEP está disponible para usuarios de los servicios de atención pre y postnatal.",null,null,null,null,null,null,0,0,0]
[null,null,null,"○","La PrEP está disponible para los usuarios de los servicios de salud sexual y reproductiva (SSR) y planificación familiar (PF).",null,null,null,null,null,null,0,0,0]
[null,null,null,"○","La PrEP está disponible para los usuarios que quieren realizarse pruebas de ITS.",null,null,null,null,null,null,0,0,0]
[null,null,null,"○","La PrEP está disponible en puntos de servicio ambulatorios.",null,null,null,null,null,null,0,0,0]
[null,null,null,"○","La PrEP está disponible para los colaboradores de los usuarios que acceden a los servicios relacionados con el VIH.",null,null,null,null,null,null,0,0,0]
[null,null,"Accesibles","○","Las instalaciones que proporcionan servicios de PrEP tienen un horario de funcionamiento ampliado (atención fuera de horario y en fines de semana).",null,null,null,null,{"$f":"IFERROR(O64,\"-\")","v":"-"},null,0,0,0,{"$f":"IFERROR(ROUND(AVERAGEIF(L64:N67,\"<>0\",L64:N67),0),\"-\")","v":"-"}]
[null,null,null,"○","Las instalaciones que proporcionan servicios de PrEP ofrecen servicios adaptados para jóvenes.",null,null,null,null,null,null,0,0,0]
[null,null,null,"○","Las instalaciones que proporcionan servicios de PrEP están convenientemente ubicadas.",null,null,null,null,null,null,0,0,0]
[null,null,null,"○","Las instalaciones que ofrecen servicios de PrEP admiten usuarios que solicitan PrEP online.",null,null,null,null,null,null,0,0,0]
[null,null,"Aceptables","○","Las necesidades únicas de las poblaciones que acceden a la PrEP, que pueden incluir a las PC y a los jóvenes, se abordan / gestionan adecuadamente. ",null,null,null,null,{"$f":"IFERROR(O68,\"-\")","v":"-"},null,0,0,0,{"$f":"IFERROR(ROUND(AVERAGEIF(L68:N70,\"<>0\",L68:N70),0),\"-\")","v":"-"}]
[null,null,null,"○","La provisión de PrEP se realiza sin juzgar ni estigmatizar.",null,null,null,null,null,null,0,0,0]
[null,null,null,"○","Los servicios de PrEP son confidenciales y garantizan el anonimato.",null,null,null,null,null,null,0,0,0]
[null,null,"Soporte a la prestación de servicios",null,null,null,null,null,null,null,null,0,0,0]
[null,null,"Formación","○","La PrEP se incluye en el paquete de capacitación básica para todos los profesionales sanitarios.",null,null,null,null,{"$f":"IFERROR(O72,\"-\")","v":"-"},null,0,0,0,{"$f":"IFERROR(ROUND(AVERAGEIF(L72:N77,\"<>0\",L72:N77),0),\"-\")","v":"-"}]
[null,null,null,"○","Los gerentes y proveedores de PrEP están formados para prestar servicio sin prejuicios y sin juzgar a los usuarios.",null,null,null,null,null,null,0,0,0]
[null,null,null,"○","Los gerentes y proveedores de PrEP reciben formación específica para su puesto, y mentoría y apoyo continuos.",null,null,null,null,null,null,0,0,0]
[null,null,null,"○","Los gerentes y proveedores de PrEP tienen formación en herramientas de elaboración de informes, determinación de plazos y definición de indicadores.",null,null,null,null,null,null,0,0,0]
[null,null,null,"○","Los gerentes y proveedores de PrEP están formados en seguimiento de reacciones adversas y mecanismos de reporte.",null,null,null,null,null,null,0,0,0]
[null,null,null,"○","Se evalúa la capacitación de los proveedores y se proporciona feedback a los formadores.",null,null,null,null,null,null,0,0,0]
[null,null,"Herramientas de prestación de servicios","○","Existen asistentes para realizar el trabajo, algoritmos de iniciación y seguimiento, y herramientas de orientación y asesoramiento desarrolladas de acuerdo con las políticas y directrices nacionales.",null,null,null,null,{"$f":"IFERROR(O78,\"-\")","v":"-"},null,0,0,0,{"$f":"IFERROR(ROUND(AVERAGEIF(L78:N80,\"<>0\",L78:N80),0),\"-\")","v":"-"}]
[null,null,null,"○","Las herramientas tienen en cuenta las necesidades únicas de las diferentes poblaciones.",null,null,null,null,null,null,0,0,0]
[null,null,null,"○","Las herramientas están disponibles y se utilizan dondequiera que se proporcionen servicios de PrEP.",null,null,null,null,null,null,0,0,0]
[null,null,"Elegibilidad y pruebas de iniciación","○","Se dispone de una variedad de pruebas de VIH (en función de las instalaciones, autopruebas, divulgación, etc.).",null,null,null,null,{"$f":"IFERROR(O81,\"-\")","v":"-"},null,0,0,0,{"$f":"IFERROR(ROUND(AVERAGEIF(L81:N91,\"<>0\",L81:N91),0),\"-\")","v":"-"}]
[null,null,null,"○","Existen enlaces directos desde los servicios de pruebas del VIH a los servicios de prevención (incluidos los servicios de PrEP).",null,null,null,null,null,null,0,0,0]
[null,null,null,"○","La evaluación del riesgo de contraer VIH de una persona se realiza mediante una conversación sutil con el proveedor: tiene en cuenta la «temporada de riesgo» de cada persona, está orientada a la conducta, no se basa en las poblaciones objetivo y en ella se discute una combinación de métodos de reducción del riesgo.               que incluye un comportamiento futuro probable",null,null,null,null,null,null,0,0,0]
[null,null,null,"○","Se discuten todos los métodos de PrEP disponibles (PrEP oral, anillo, inyectables).",null,null,null,null,null,null,0,0,0]
[null,null,null,"○","Se implementa una evaluación de preparación individual antes de iniciar la metodología PrEP seleccionada.",null,null,null,null,null,null,0,0,0]
[null,null,null,"○","Se realizan pruebas de detección de la infección aguda por VIH (IAH), que pueden incluir pruebas de carga viral (CV) para pacientes con síntomas (si la CV no está disponible, hay un protocolo claro sobre cómo proceder).",null,null,null,null,null,null,0,0,0]
[null,null,null,"○","Se realizan pruebas, vacunación o tratamiento de la hepatitis de acuerdo con las directrices nacionales (VHB, VHC).",null,null,null,null,null,null,0,0,0]
[null,null,null,"○","Se proporciona pruebas de sífilis y otras ITS.",null,null,null,null,null,null,0,0,0]
[null,null,null,"○","Para la provisión de PrEP oral, se analiza la función renal con la prueba de aclaramiento de creatinina (CrCl). El retraso en recibir los resultados no es impedimento para iniciar la PrEP.",null,null,null,null,null,null,0,0,0]
[null,null,null,"○","Se hace un uso adecuado de la PrEP, y se tienen en cuenta el uso efectivo de la misma, el inicio y el fin de la profilaxis en condiciones de seguridad, el tiempo necesario para desarrollar la protección, la protección dispensada en función de eventos concretos (específicamente para la PrEP oral y los hombres que tienen relaciones sexuales con hombres -HSH-). Además, se explican los posibles efectos secundarios al usuario.",null,null,null,null,null,null,0,0,0]
[null,null,null,"○","Es posible iniciar la PrEP en el mismo día.",null,null,null,null,null,null,0,0,0]
[null,null,"Seguimiento clínico","○","Repetición de la prueba del VIH en el primer mes.",null,null,null,null,{"$f":"IFERROR(O92,\"-\")","v":"-"},null,0,0,0,{"$f":"IFERROR(ROUND(AVERAGEIF(L92:N100,\"<>0\",L92:N100),0),\"-\")","v":"-"}]
[null,null,null,"○","Seguimiento posterior y pruebas del VIH a los 3 meses (también es una opción la autoprueba del VIH con validación clínica).",null,null,null,null,null,null,0,0,0]
[null,null,null,"○","Evaluación de riesgos continua.",null,null,null,null,null,null,0,0,0]
[null,null,null,"○","Seguimiento de RAG (reacciones adversas graves) y efectos secundarios.",null,null,null,null,null,null,0,0,0]
[null,null,null,"○","Se proporciona pruebas de sífilis y otras ITS.",null,null,null,null,null,null,0,0,0]
[null,null,null,"○","Existen procedimientos para realizar pruebas de nivel de drogas periódicamente.",null,null,null,null,null,null,0,0,0]
[null,null,null,"○","Los usuarios aceptan el embalaje PrEP (es discreto, apto para jóvenes).",null,null,null,null,null,null,0,0,0]
[null,null,null,"○","Se dispone de prescripción o dispensación para varios meses.                   ",null,null,null,null,null,null,0,0,0]
[null,null,null,"○","Se contacta con los usuarios que no acuden a las citas de seguimiento.",null,null,null,null,null,null,0,0,0]
[null,null,"Informes sobre el asesoramiento y el apoyo a la adherencia y uso efectivo","○","Se proporciona asesoramiento individualizado con sensibilidad.    ",null,null,null,null,{"$f":"IFERROR(O101,\"-\")","v":"-"},null,0,0,0,{"$f":"IFERROR(ROUND(AVERAGEIF(L101:N110,\"<>0\",L101:N110),0),\"-\")","v":"-"}]
[null,null,null,"○","Se evalúa el uso efectivo de la PrEP, que forma parte del debate sobre el riesgo continuo.",null,null,null,null,null,null,0,0,0]
[null,null,null,"○","Se dispone de apoyo y asesoramiento por parte de la comunidad/entre pares (ej.: usuarios expertos, grupos de apoyo entre pares). ",null,null,null,null,null,null,0,0,0]
[null,null,null,"○","Se dispone de materiales de información, educación y comunicación (IEC).",null,null,null,null,null,null,0,0,0]
[null,null,null,"○","El asesoramiento incluye: Eficacia del método elegido: uso requerido y dosificación diaria (PrEP oral), mensual o multimensual (métodos de acción prolongada), qué hacer si se olvida la dosis o el anillo se cae, etc.",null,null,null,null,null,null,0,0,0]
[null,null,null,"○","El asesoramiento incluye: Temporadas de riesgo",null,null,null,null,null,null,0,0,0]
[null,null,null,"○","El asesoramiento incluye: La importancia de un seguimiento continuo mientras se está en PrEP",null,null,null,null,null,null,0,0,0]
[null,null,null,"○","El asesoramiento incluye: Efectos secundarios y manejo de los mismos",null,null,null,null,null,null,0,0,0]
[null,null,null,null,"El asesoramiento incluye: Apoyo a la continuidad",null,null,null,null,null,null,0,0,0]
[null,null,null,"○","El asesoramiento incluye: Cómo interrumpir y reiniciar la PrEP de forma segura",null,null,null,null,null,null,0,0,0]
[null,null,"Paquete adicional a la PrEP ","○","Se realizan pruebas de ITS (sífilis, clamidia, gonorrea) de forma rutinaria (durante las visitas para la PrEP).",null,null,null,null,{"$f":"IFERROR(O111,\"-\")","v":"-"},null,0,0,0,{"$f":"IFERROR(ROUND(AVERAGEIF(L111:N116,\"<>0\",L111:N116),0),\"-\")","v":"-"}]
[null,null,null,"○","Se proporcionan opciones de pruebas de embarazo y planificación familiar (preservativos, píldoras anticonceptivas orales, inyecciones, implantes, etc.)",null,null,null,null,null,null,0,0,0]
[null,null,null,"○","Se refiere para la CMMV según corresponda y sea aceptable.",null,null,null,null,null,null,0,0,0]
[null,null,null,"○","Existen estrategias de reducción de daños para las personas que usan drogas (intercambio de agujas, metadona disponible según necesidad).",null,null,null,null,null,null,0,0,0]
[null,null,null,"○","Se habla sobre el riesgo, la prevención del VIH y la PrEP con usuarios que no buscan servicios relacionados con el VIH (SSR, atención pre y postnatal, etc.).",null,null,null,null,null,null,0,0,0]
[null,null,null,"○","Se proporcionan servicios de colaboradores.",null,null,null,null,null,null,0,0,0]
[null,null,"COVID-19","○","Hay programas para promover la vacunación contra la COVID-19 entre los usuarios de PrEP y realizar un seguimiento.",null,null,null,null,{"$f":"IFERROR(O117,\"-\")","v":"-"},null,0,0,0,{"$f":"IFERROR(ROUND(AVERAGEIF(L117:N118,\"<>0\",L117:M118),0),\"-\")","v":"-"}]
[null,null,null,"○","Comunicación constante y acceso seguro a modelos de prestación de servicios fuera de instalaciones sanitarias (ej.: centros comunitarios, a domicilio, teleasistencia, etc.) durante los picos de la COVID-19 para evitar la interrupción del servicio",null,null,null,null,null,null,0,0,0]
[null,null,"Seguimiento del programa"]
[null,null,"Sistema de medición y evaluación (SyE) de la PrEP","○","Existen directrices específicas de SyE a nivel nacional y de Global AIDS Monitoring (GAM), y se basan en las de la OMS (y el PEPFAR, si procede).",null,null,null,null,{"$f":"IFERROR(O120,\"-\")","v":"-"},null,{"$f":"IF(ISBLANK(G120),0,1)","v":0},{"$f":"IF(ISBLANK(H120),0,3)","v":0},{"$f":"IF(ISBLANK(I120),0,5)","v":0},{"$f":"IFERROR(ROUND(AVERAGEIF(L120:N128,\"<>0\",L120:N128),0),\"-\")","v":"-"}]
[null,null,null,"○","El SyE de la PrEP está incorporado en el sistema informático de gestión de salud (SIGS) a nivel nacional (en papel o electrónico, según disponibilidad).",null,null,null,null,null,null,0,0,0]
[null,null,null,"○","El SIGS  permite recopilar datos en tiempo real.",null,null,null,null,null,null,0,0,0]
[null,null,null,"○"," Hay un sistema que asigna ID de cliente únicos a los usuarios de la PrEP y que concuerda con el ID existente (en caso de estar disponible).",null,null,null,null,null,null,0,0,0]
[null,null,null,"○","Los proveedores de PrEP tienen formación en indicadores y definiciones.",null,null,null,null,null,null,0,0,0]
[null,null,null,"○","Se ha establecido una realización de informes rutinaria. ",null,null,null,null,null,null,0,0,0]
[null,null,null,"○","Los datos se desglosan por género, grupo de población clave y edad, con franjas de edad más pequeñas para las poblaciones más jóvenes (15-19, 20-24, 25-29, etc.), y también a nivel regional.",null,null,null,null,null,null,0,0,0]
[null,null,null,"○","Los datos se utilizan para hacer un seguimiento del progreso y para la toma de decisiones informadas sobre la movilización de recursos financieros y técnicos.",null,null,null,null,null,null,0,0,0]
[null,null,null,"○","El progreso se documenta a través de un informe anual a nivel nacional.",null,null,null,null,null,null,0,0,0]
[null,null,"Flujo de datos","○","Existen directrices claras para la elaboración de informes.",null,null,null,null,{"$f":"IFERROR(O129,\"-\")","v":"-"},null,0,0,0,{"$f":"IFERROR(ROUND(AVERAGEIF(L129:N139,\"<>0\",L129:N139),0),\"-\")","v":"-"}]
[null,null,null,"○","Flujo claro de datos: clínicas > nivel regional > nivel nacional.",null,null,null,null,null,null,0,0,0]
[null,null,null,"○","Se realiza una revisión periódica de los datos y se proporciona feedback.",null,null,null,null,null,null,0,0,0]
[null,null,null,"○","Las evaluaciones de la calidad de datos se estandarizan, se realizan regularmente y se utilizan para abordar los problemas en los datos.",null,null,null,null,null,null,0,0,0]
[null,null,null,"○","Todas las partes interesadas integran sus informes en un sistema único a nivel nacional, y los datos están armonizados.",null,null,null,null,null,null,0,0,0]
[null,null,null,"○","Todos los implementadores incluyen en el sistema datos exactos y oportunos.",null,null,null,null,null,null,0,0,0]
[null,null,null,"○","Existen mecanismos de rendición de cuentas que dirigen el flujo de datos y garantizan la recopilación de datos de calidad.               ",null,null,null,null,null,null,0,0,0]
[null,null,null,"○","Los datos se difunden a nivel regional. ",null,null,null,null,null,null,0,0,0]
[null,null,null,"○","Los implementadores están capacitados para usar datos en la toma de decisiones. ",null,null,null,null,null,null,0,0,0]
[null,null,null,"○","Los datos se utilizan para detectar reacciones adversas (RA), evaluar el estándar de atención, medir el progreso hacia la consecución de los objetivos del programa y guiar la toma de decisiones.",null,null,null,null,null,null,0,0,0]
[null,null,null,"○","Los datos se comparten con el GTT de manera oportuna.",null,null,null,null,null,null,0,0,0]
[null,null,"Calidad","○","Se llevan a cabo evaluaciones de calidad con regularidad, tanto a nivel nacional como regional.",null,null,null,null,{"$f":"IFERROR(O140,\"-\")","v":"-"},null,0,0,0,{"$f":"IFERROR(ROUND(AVERAGEIF(L140:N145,\"<>0\",L140:N145),0),\"-\")","v":"-"}]
[null,null,null,"○","Las evaluaciones de calidad están integradas en el sistema de salud general e incluyen al sector tradicional.",null,null,null,null,null,null,0,0,0]
[null,null,null,"○","Todos los colaboradores cumplen con los estándares de calidad globales.",null,null,null,null,null,null,0,0,0]
[null,null,null,"○","Las evaluaciones de calidad combinan varios enfoques: observación, entrevistas, debates de grupos de muestreo, controles de inventario, revisión de documentos, etc.",null,null,null,null,null,null,0,0,0]
[null,null,null,"○","Los resultados de las evaluaciones de calidad se comunican a todas las partes interesadas, y se actúa en consecuencia.",null,null,null,null,null,null,0,0,0]
[null,null,null,"○","Hay apoyo para la mejora de la calidad.",null,null,null,null,null,null,0,0,0]
[null,null,"Farmacovigilancia","○","Hay definiciones nacionales para la clasificación de las RA, que siguen la línea de los estándares globales.",null,null,null,null,{"$f":"IFERROR(O146,\"-\")","v":"-"},null,0,0,0,{"$f":"IFERROR(ROUND(AVERAGEIF(L146:N153,\"<>0\",L146:N153),0),\"-\")","v":"-"}]
[null,null,null,"○","La gestión de las RA está estandarizada en todo el programa. ",null,null,null,null,null,null,0,0,0]
[null,null,null,"○","Todas las partes interesadas informan sobre RA con una regularidad definida.",null,null,null,null,null,null,0,0,0]
[null,null,null,"○","Se elaboran informes detallados de RA. ",null,null,null,null,null,null,0,0,0]
[null,null,null,"○","Se realiza y se documenta el seguimiento del paciente, que también proporciona feedback.",null,null,null,null,null,null,0,0,0]
[null,null,null,"○","Se han implementado procesos de derivación de pacientes para poner en contacto a aquellos que requieren atención adicional.",null,null,null,null,null,null,0,0,0]
[null,null,null,"○","Se realizan pruebas de resistencia para personas que se seroconvierten.",null,null,null,null,null,null,0,0,0]
[null,null,null,"○","Se hace a los usuarios de PrEP una prueba de resistencia a los medicamentos contra el VIH de forma periódica.",null,null,null,null,null,null,0,0,0]
[]
[null,null,null,null,null,null,null,null,null,null,null,null,{"$f":"COUNTIF(O6:O153,\"-\")","v":22}]
[null,null,null,null,null,null,null,null,null,null,null,null,{"$f":"COUNTIF(O6:O153,\">0\")","v":0}]
[null,null,null,null,null,null,null,null,null,null,null,"Sheet Completion",{"$f":"M156/(M155+M156)","v":0},{"$f":"1-M157","v":1}]

{"sheet":"Resultados del programa ","index":6,"n_rows":37,"n_cols":15,"rows_kept":37,"cut":false,"hidden":false,"merged":[[16,9,20,9],[21,9,26,9],[11,9,15,9],[27,9,32,9],[1,2,1,8],[5,2,10,2],[5,9,10,9],[11,2,15,2],[16,2,20,2],[21,2,26,2],[27,2,32,2]]}
[]
[null,null,"Resultados del programa"]
[]
[null,null,"Elemento","Criterios",null,"N/A","Ausente","Presente pero no óptimo","Presente y funcionando bien","Promedio del elemento","Comentarios (si procede)","Absent","Present","Optimal","Average"]
[null,null,"Resultados e indicadores"]
[null,null,"Uso de PrEP","○","Se dispone de indicadores de uso de PrEP para todas las modalidades (PrEP oral, anillo, inyectables de acción prolongada).",null,null,null,null,{"$f":"IFERROR(O6,\"-\")","v":"-"},null,{"$f":"IF(ISBLANK(G6),0,1)","v":0},{"$f":"IF(ISBLANK(H6),0,3)","v":0},{"$f":"IF(ISBLANK(I6),0,5)","v":0},{"$f":"IFERROR(ROUND(AVERAGEIF(L6:N11,\"<>0\",L6:N11),0),\"-\")","v":"-"}]
[null,null,null,"○","Los indicadores se definen como: % de personas aptas que iniciaron la [modalidad PrEP seleccionada] durante el periodo recogido en el informe                            ",null,null,null,null,null,null,0,0,0]
[null,null,null,"○","Los datos indicadores del uso de PrEP se recopilan trimestralmente.",null,null,null,null,null,null,0,0,0]
[null,null,null,"○","Los indicadores para la [modalidad PrEP seleccionada] se desglosan por género, población clave, unidad geográfica y edad, con franjas de edad más pequeñas para poblaciones más jóvenes (15-19, 20-24, 25-29, etc.).                                    ",null,null,null,null,null,null,0,0,0]
[null,null,null,"○","Los indicadores de la [modalidad PrEP seleccionada] se desglosan por uso de PrEP por primera vez y uso repetitivo.",null,null,null,null,null,null,0,0,0]
[null,null,null,"○","Se cumple el objetivo definido a nivel nacional (ya sea trimestral o anual).",null,null,null,null,null,null,0,0,0]
[null,null,"Continuación de la PrEP","○","Existen indicadores de continuación de la PrEP para todas las modalidades disponibles (PrEP oral, anillo, inyectables de acción prolongada).",null,null,null,null,{"$f":"IFERROR(O12,\"-\")","v":"-"},null,0,0,0,{"$f":"IFERROR(ROUND(AVERAGEIF(L12:N16,\"<>0\",L12:N16),0),\"-\")","v":"-"}]
[null,null,null,"○","Los indicadores se definen como: % de usuarios de la [modalidad PrEP seleccionada] que continuaron con la [modalidad de PrEP seleccionada] durante 3 meses consecutivos tras haber iniciado la profilaxis durante el periodo recogido en el informe.              ",null,null,null,null,null,null,0,0,0]
[null,null,null,"○","Los datos indicadores de la continuación de la PrEP se recopilan trimestralmente.",null,null,null,null,null,null,0,0,0]
[null,null,null,"○","Los indicadores para la [modalidad PrEP seleccionada] se desglosan por género, población clave, unidad geográfica y edad, con franjas de edad más pequeñas para poblaciones más jóvenes (15-19, 20-24, 25-29, etc.).                                       ",null,null,null,null,null,null,0,0,0]
[null,null,null,"○","Se cumple el objetivo definido a nivel nacional (ya sea trimestral o anual).",null,null,null,null,null,null,0,0,0]
[null,null,"Uso actual de PrEP","○","Se han establecido indicadores de uso actual de PrEP para todas las modalidades disponibles (PrEP oral, anillo, inyectables de acción prolongada).",null,null,null,null,{"$f":"IFERROR(O17,\"-\")","v":"-"},null,0,0,0,{"$f":"IFERROR(ROUND(AVERAGEIF(L17:N21,\"<>0\",L17:N21),0),\"-\")","v":"-"}]
[null,null,null,"○","Los indicadores se definen como: número de personas que recibieron [seleccionar modalidad PrEP] al menos una vez durante el periodo recogido en el informe.",null,null,null,null,null,null,0,0,0]
[null,null,null,"○","Los datos indicadores del uso actual de PrEP se recopilan trimestralmente.",null,null,null,null,null,null,0,0,0]
[null,null,null,"○","Los indicadores para [modalidad PrEP seleccionada] se desglosan por género, población clave, unidad geográfica y edad, con franjas de edad más pequeñas para poblaciones más jóvenes (15-19, 20-24, 25-29, etc.).                                    ",null,null,null,null,null,null,0,0,0]
[null,null,null,"○","Se cumple el objetivo definido a nivel nacional (ya sea trimestral o anual).",null,null,null,null,null,null,0,0,0]
[null,null,"Seroconversión entre usuarios de PrEP","○","Existen indicadores de seroconversión entre los usuarios de PrEP (para todas las modalidades disponibles).",null,null,null,null,{"$f":"IFERROR(O22,\"-\")","v":"-"},null,0,0,0,{"$f":"IFERROR(ROUND(AVERAGEIF(L22:N27,\"<>0\",L22:N27),0),\"-\")","v":"-"}]
[null,null,null,"○","Los indicadores están claramente definidos e incluyen datos desglosados por el momento de la seroconversión (durante o después de la PrEP).",null,null,null,null,null,null,0,0,0]
[null,null,null,"○","Se evalúa la resistencia a los fármacos entre seroconversos.",null,null,null,null,null,null,0,0,0]
[null,null,null,"○","Se evalúan los antecedentes de uso de PrEP entre seroconversos.              ",null,null,null,null,null,null,0,0,0]
[null,null,null,"○","Los indicadores para [modalidad PrEP seleccionada] se desglosan por género, población clave, unidad geográfica y edad, con franjas de edad más pequeñas para poblaciones más jóvenes (15-19., 20-24, 25-29, etc.).   ",null,null,null,null,null,null,0,0,0]
[null,null,null,"○","Se cumple el objetivo definido a nivel nacional (ya sea trimestral o anual).",null,null,null,null,null,null,0,0,0]
[null,null,"Evaluación de la eficacia del programa",null,"La evaluación de la efectividad puede incluir:",null,null,null,null,{"$f":"IFERROR(O28,\"-\")","v":"-"},null,0,0,0,{"$f":"IFERROR(ROUND(AVERAGEIF(L28:N33,\"<>0\",L28:N33),0),\"-\")","v":"-"}]
[null,null,null,"○","La evaluación del impacto (n.º de infecciones por VIH evitadas)",null,null,null,null,null,null,0,0,0]
[null,null,null,"○","Un indicador de compensación de riesgos (vigilancia de ITS) ",null,null,null,null,null,null,0,0,0]
[null,null,null,"○","Un indicador de beneficios colaterales (n.º de VIH+ identificados a través del programa de PrEP)",null,null,null,null,null,null,0,0,0]
[null,null,null,"○","La evaluación se lleva a cabo de forma rutinaria.",null,null,null,null,null,null,0,0,0]
[null,null,null,"○","El programa se adapta a los cambios en la incidencia y el riesgo de infección por VIH.",null,null,null,null,null,null,0,0,0]
[null,null,null,null,null,null,null,null,null,null,null,null,null,0]
[null,null,null,null,null,null,null,null,null,null,null,null,{"$f":"COUNTIF(O6:O33,\"-\")","v":5}]
[null,null,null,null,null,null,null,null,null,null,null,null,{"$f":"COUNTIF(O6:O33,\">0\")","v":0}]
[null,null,null,null,null,null,null,null,null,null,null,"Sheet Completion",{"$f":"M36/(M35+M36)","v":0},{"$f":"1-M37","v":1}]

{"sheet":"Resumen de calificaciones","index":7,"n_rows":41,"n_cols":11,"rows_kept":41,"cut":false,"hidden":false,"merged":[[29,2,35,2],[29,3,33,3],[1,2,1,6],[2,2,7,2],[2,3,4,3],[5,3,6,3],[8,2,28,2],[8,3,11,3],[12,3,14,3],[15,3,18,3],[19,3,20,3],[21,3,24,3],[25,3,28,3]]}
[]
[null,null,"Resumen de calificaciones"]
[null,null,"Gestión del programa","Estrategia, política y regulación",null,"Presupuesto de la estrategia nacional de prevención del VIH",{"$f":"'Gestión del programa'!O6","v":"-"}]
[null,null,null,null,null,"Directrices clínicas a nivel nacional",{"$f":"'Gestión del programa'!O12","v":"-"}]
[null,null,null,null,null,"Situación reglamentaria de los medicamentos de PrEP",{"$f":"'Gestión del programa'!O21","v":"-"}]
[null,null,null,"Liderazgo y coordinación",null,"Liderazgo y rendición de cuentas",{"$f":"'Gestión del programa'!O25","v":"-"}]
[null,null,null,null,null,"Participación de las partes interesadas",{"$f":"'Gestión del programa'!O28","v":"-"}]
[null,null,null,"Financiación",null,"Presupuesto",{"$f":"'Gestión del programa'!O35","v":"-"}]
[null,null,"Implementación del programa","Orientación y planificación",null,"Planes de trabajo para la implementación",{"$f":"'Implementación del programa'!O6","v":"-"}]
[null,null,null,null,null,"Evaluación de la población en riesgo",{"$f":"'Implementación del programa'!O13","v":"-"}]
[null,null,null,null,null,"Objetivos de los indicadores",{"$f":"'Implementación del programa'!O18","v":"-"}]
[null,null,null,null,null,"Estrategia de comunicación",{"$f":"'Implementación del programa'!O27","v":"-"}]
[null,null,null,"Suministro",null,"Cuantificación de la necesidad de productos básicos",{"$f":"'Implementación del programa'!O36","v":"-"}]
[null,null,null,null,null,"Plan de aprovisionamiento de productos básicos",{"$f":"'Implementación del programa'!O40","v":"-"}]
[null,null,null,null,null,"Cadena de suministro/GLSI",{"$f":"'Implementación del programa'!O45","v":"-"}]
[null,null,null,"Prestación de servicios",null,"Diferenciados",{"$f":"'Implementación del programa'!O54","v":"-"}]
[null,null,null,null,null,"Integrados",{"$f":"'Implementación del programa'!O58","v":"-"}]
[null,null,null,null,null,"Accesibles",{"$f":"'Implementación del programa'!O64","v":"-"}]
[null,null,null,null,null,"Aceptables",{"$f":"'Implementación del programa'!O68","v":"-"}]
[null,null,null,"Soporte a la prestación de servicios",null,"Formación",{"$f":"'Implementación del programa'!O72","v":"-"}]
[null,null,null,null,null,"Herramientas de prestación de servicios      ",{"$f":"'Implementación del programa'!O78","v":"-"}]
[null,null,null,"Paquete de servicios clínicos",null,"Elegibilidad y pruebas de iniciación",{"$f":"'Implementación del programa'!O81","v":"-"}]
[null,null,null,null,null,"Seguimiento clínico",{"$f":"'Implementación del programa'!O92","v":"-"}]
[null,null,null,null,null,"Asesoramiento y apoyo al uso efectivo",{"$f":"'Implementación del programa'!O101","v":"-"}]
[null,null,null,null,null,"Paquete adicional a la PrEP",{"$f":"'Implementación del programa'!O111","v":"-"}]
[null,null,null,"Seguimiento del programa",null,"Sistema de SyE de la PrEP",{"$f":"'Implementación del programa'!O120","v":"-"}]
[null,null,null,null,null,"Flujo de datos",{"$f":"'Implementación del programa'!O129","v":"-"}]
[null,null,null,null,null,"Calidad",{"$f":"'Implementación del programa'!O140","v":"-"}]
[null,null,null,null,null,"Farmacovigilancia",{"$f":"'Implementación del programa'!O146","v":"-"}]
[null,null,"Resultados del programa","Resultados e indicadores",null,"Uso de PrEP",{"$f":"'Resultados del programa '!O6","v":"-"}]
[null,null,null,null,null,"Continuación de la PrEP",{"$f":"'Resultados del programa '!O12","v":"-"}]
[null,null,null,null,null,"Uso actual de PrEP",{"$f":"'Resultados del programa '!O17","v":"-"}]
[null,null,null,null,null,"Seroconversión entre usuarios de PrEP",{"$f":"'Resultados del programa '!O22","v":"-"}]
[null,null,null,null,null,"Evaluación de la eficacia del programa",{"$f":"'Resultados del programa '!O28","v":"-"}]
[null,null,null,"Indicadores de sostenibilidad",null,null,{"$f":"IFERROR(ROUND(AVERAGE('Gestión del programa'!P6:P83),0),\"-\")","v":"-"}]
[null,null,null,"Indicadores de la COVID-19 (y otras pandemias)",null,null,{"$f":"IF((SUM('Gestión del programa'!L20:N20)+SUM('Implementación del programa'!L117:N117)+SUM('Implementación del programa'!L118:N118))/3=0,\"-\", ROUND((SUM('Gestión del programa'!L20:N20)+SUM('Implementación del programa'!L117:N117)+SUM('Implementación del programa'!L118:N118))/3,0))","v":"-"}]
[]
[]
[null,null,null,null,null,null,null,null,null,{"$f":"COUNTIF(G3:G36,\"-\")","v":34}]
[null,null,null,null,null,null,null,null,null,{"$f":"COUNTIF(G3:G36,\">0\")","v":0}]
[null,null,null,null,null,null,null,null,"PSAT Completion",{"$f":"J40/(J39+J40)","v":0},{"$f":"1-J41","v":1}]

{"sheet":"Siguientes pasos","index":8,"n_rows":54,"n_cols":8,"rows_kept":54,"cut":false,"hidden":false,"merged":[[1,2,1,8],[11,2,11,3]]}
[]
[null,null,"Siguientes pasos"]
[]
[null,null,null,null,null,"Elemento que debe abordarse","Motivo del bajo rendimiento","Acciones propuestas (e.j.: apoyo necesario o acciones correctivas)"]
[null,null,null,null,1,{"$f":"IFERROR(INDEX('Resumen de calificaciones'!$F$1:$F$93,SMALL(IF('Resumen de calificaciones'!$G$1:$G$93<=$C$12,ROW('Resumen de calificaciones'!$G$1:$G$93)),ROW(3:3))),\"\")","v":0}]
[null,null,null,null,2,{"$f":"IFERROR(INDEX('Resumen de calificaciones'!$F$1:$F$93,SMALL(IF('Resumen de calificaciones'!$G$1:$G$93<=$C$12,ROW('Resumen de calificaciones'!$G$1:$G$93)),ROW(4:4))),\"\")","v":0}]
[null,null,null,null,3,{"$f":"IFERROR(INDEX('Resumen de calificaciones'!$F$1:$F$93,SMALL(IF('Resumen de calificaciones'!$G$1:$G$93<=$C$12,ROW('Resumen de calificaciones'!$G$1:$G$93)),ROW(5:5))),\"\")","v":0}]
[null,null,null,null,4,{"$f":"IFERROR(INDEX('Resumen de calificaciones'!$F$1:$F$93,SMALL(IF('Resumen de calificaciones'!$G$1:$G$93<=$C$12,ROW('Resumen de calificaciones'!$G$1:$G$93)),ROW(6:6))),\"\")","v":0}]
[null,null,null,null,5,{"$f":"IFERROR(INDEX('Resumen de calificaciones'!$F$1:$F$93,SMALL(IF('Resumen de calificaciones'!$G$1:$G$93<=$C$12,ROW('Resumen de calificaciones'!$G$1:$G$93)),ROW(7:7))),\"\")","v":0}]
[null,null,null,null,6,{"$f":"IFERROR(INDEX('Resumen de calificaciones'!$F$1:$F$93,SMALL(IF('Resumen de calificaciones'!$G$1:$G$93<=$C$12,ROW('Resumen de calificaciones'!$G$1:$G$93)),ROW(8:8))),\"\")","v":0}]
[null,null,null,null,7,{"$f":"IFERROR(INDEX('Resumen de calificaciones'!$F$1:$F$93,SMALL(IF('Resumen de calificaciones'!$G$1:$G$93<=$C$12,ROW('Resumen de calificaciones'!$G$1:$G$93)),ROW(9:9))),\"\")","v":0}]
[null,null,null,null,8,{"$f":"IFERROR(INDEX('Resumen de calificaciones'!$F$1:$F$93,SMALL(IF('Resumen de calificaciones'!$G$1:$G$93<=$C$12,ROW('Resumen de calificaciones'!$G$1:$G$93)),ROW(10:10))),\"\")","v":0}]
[null,null,null,null,9,{"$f":"IFERROR(INDEX('Resumen de calificaciones'!$F$1:$F$93,SMALL(IF('Resumen de calificaciones'!$G$1:$G$93<=$C$12,ROW('Resumen de calificaciones'!$G$1:$G$93)),ROW(11:11))),\"\")","v":0}]
[null,null,null,null,10,{"$f":"IFERROR(INDEX('Resumen de calificaciones'!$F$1:$F$93,SMALL(IF('Resumen de calificaciones'!$G$1:$G$93<=$C$12,ROW('Resumen de calificaciones'!$G$1:$G$93)),ROW(12:12))),\"\")","v":0}]
[null,null,null,null,11,{"$f":"IFERROR(INDEX('Resumen de calificaciones'!$F$1:$F$93,SMALL(IF('Resumen de calificaciones'!$G$1:$G$93<=$C$12,ROW('Resumen de calificaciones'!$G$1:$G$93)),ROW(13:13))),\"\")","v":0}]
[null,null,null,null,12,{"$f":"IFERROR(INDEX('Resumen de calificaciones'!$F$1:$F$93,SMALL(IF('Resumen de calificaciones'!$G$1:$G$93<=$C$12,ROW('Resumen de calificaciones'!$G$1:$G$93)),ROW(14:14))),\"\")","v":0}]
[null,null,null,null,13,{"$f":"IFERROR(INDEX('Resumen de calificaciones'!$F$1:$F$93,SMALL(IF('Resumen de calificaciones'!$G$1:$G$93<=$C$12,ROW('Resumen de calificaciones'!$G$1:$G$93)),ROW(15:15))),\"\")","v":0}]
[null,null,null,null,14,{"$f":"IFERROR(INDEX('Resumen de calificaciones'!$F$1:$F$93,SMALL(IF('Resumen de calificaciones'!$G$1:$G$93<=$C$12,ROW('Resumen de calificaciones'!$G$1:$G$93)),ROW(16:16))),\"\")","v":0}]
[null,null,null,null,15,{"$f":"IFERROR(INDEX('Resumen de calificaciones'!$F$1:$F$93,SMALL(IF('Resumen de calificaciones'!$G$1:$G$93<=$C$12,ROW('Resumen de calificaciones'!$G$1:$G$93)),ROW(17:17))),\"\")","v":0}]
[null,null,null,null,16,{"$f":"IFERROR(INDEX('Resumen de calificaciones'!$F$1:$F$93,SMALL(IF('Resumen de calificaciones'!$G$1:$G$93<=$C$12,ROW('Resumen de calificaciones'!$G$1:$G$93)),ROW(18:18))),\"\")","v":0}]
[null,null,null,null,17,{"$f":"IFERROR(INDEX('Resumen de calificaciones'!$F$1:$F$93,SMALL(IF('Resumen de calificaciones'!$G$1:$G$93<=$C$12,ROW('Resumen de calificaciones'!$G$1:$G$93)),ROW(19:19))),\"\")","v":0}]
[null,null,null,null,18,{"$f":"IFERROR(INDEX('Resumen de calificaciones'!$F$1:$F$93,SMALL(IF('Resumen de calificaciones'!$G$1:$G$93<=$C$12,ROW('Resumen de calificaciones'!$G$1:$G$93)),ROW(20:20))),\"\")","v":0}]
[null,null,null,null,19,{"$f":"IFERROR(INDEX('Resumen de calificaciones'!$F$1:$F$93,SMALL(IF('Resumen de calificaciones'!$G$1:$G$93<=$C$12,ROW('Resumen de calificaciones'!$G$1:$G$93)),ROW(21:21))),\"\")","v":0}]
[null,null,null,null,20,{"$f":"IFERROR(INDEX('Resumen de calificaciones'!$F$1:$F$93,SMALL(IF('Resumen de calificaciones'!$G$1:$G$93<=$C$12,ROW('Resumen de calificaciones'!$G$1:$G$93)),ROW(22:22))),\"\")","v":0}]
[null,null,null,null,21,{"$f":"IFERROR(INDEX('Resumen de calificaciones'!$F$1:$F$93,SMALL(IF('Resumen de calificaciones'!$G$1:$G$93<=$C$12,ROW('Resumen de calificaciones'!$G$1:$G$93)),ROW(23:23))),\"\")","v":0}]
[null,null,null,null,22,{"$f":"IFERROR(INDEX('Resumen de calificaciones'!$F$1:$F$93,SMALL(IF('Resumen de calificaciones'!$G$1:$G$93<=$C$12,ROW('Resumen de calificaciones'!$G$1:$G$93)),ROW(24:24))),\"\")","v":0}]
[null,null,null,null,23,{"$f":"IFERROR(INDEX('Resumen de calificaciones'!$F$1:$F$93,SMALL(IF('Resumen de calificaciones'!$G$1:$G$93<=$C$12,ROW('Resumen de calificaciones'!$G$1:$G$93)),ROW(25:25))),\"\")","v":0}]
[null,null,null,null,24,{"$f":"IFERROR(INDEX('Resumen de calificaciones'!$F$1:$F$93,SMALL(IF('Resumen de calificaciones'!$G$1:$G$93<=$C$12,ROW('Resumen de calificaciones'!$G$1:$G$93)),ROW(26:26))),\"\")","v":0}]
[null,null,null,null,25,{"$f":"IFERROR(INDEX('Resumen de calificaciones'!$F$1:$F$93,SMALL(IF('Resumen de calificaciones'!$G$1:$G$93<=$C$12,ROW('Resumen de calificaciones'!$G$1:$G$93)),ROW(27:27))),\"\")","v":0}]
[null,null,null,null,26,{"$f":"IFERROR(INDEX('Resumen de calificaciones'!$F$1:$F$93,SMALL(IF('Resumen de calificaciones'!$G$1:$G$93<=$C$12,ROW('Resumen de calificaciones'!$G$1:$G$93)),ROW(28:28))),\"\")","v":0}]
[null,null,null,null,27,{"$f":"IFERROR(INDEX('Resumen de calificaciones'!$F$1:$F$93,SMALL(IF('Resumen de calificaciones'!$G$1:$G$93<=$C$12,ROW('Resumen de calificaciones'!$G$1:$G$93)),ROW(29:29))),\"\")","v":0}]
[null,null,null,null,28,{"$f":"IFERROR(INDEX('Resumen de calificaciones'!$F$1:$F$93,SMALL(IF('Resumen de calificaciones'!$G$1:$G$93<=$C$12,ROW('Resumen de calificaciones'!$G$1:$G$93)),ROW(30:30))),\"\")","v":0}]
[null,null,null,null,29,{"$f":"IFERROR(INDEX('Resumen de calificaciones'!$F$1:$F$93,SMALL(IF('Resumen de calificaciones'!$G$1:$G$93<=$C$12,ROW('Resumen de calificaciones'!$G$1:$G$93)),ROW(31:31))),\"\")","v":0}]
[null,null,null,null,30,{"$f":"IFERROR(INDEX('Resumen de calificaciones'!$F$1:$F$93,SMALL(IF('Resumen de calificaciones'!$G$1:$G$93<=$C$12,ROW('Resumen de calificaciones'!$G$1:$G$93)),ROW(32:32))),\"\")","v":0}]
[null,null,null,null,31,{"$f":"IFERROR(INDEX('Resumen de calificaciones'!$F$1:$F$93,SMALL(IF('Resumen de calificaciones'!$G$1:$G$93<=$C$12,ROW('Resumen de calificaciones'!$G$1:$G$93)),ROW(33:33))),\"\")","v":0}]
[null,null,null,null,32,{"$f":"IFERROR(INDEX('Resumen de calificaciones'!$F$1:$F$93,SMALL(IF('Resumen de calificaciones'!$G$1:$G$93<=$C$12,ROW('Resumen de calificaciones'!$G$1:$G$93)),ROW(34:34))),\"\")","v":0}]
[null,null,null,null,33,{"$f":"IFERROR(INDEX('Resumen de calificaciones'!$F$1:$F$93,SMALL(IF('Resumen de calificaciones'!$G$1:$G$93<=$C$12,ROW('Resumen de calificaciones'!$G$1:$G$93)),ROW(35:35))),\"\")","v":0}]
[null,null,null,null,34,{"$f":"IFERROR(INDEX('Resumen de calificaciones'!$F$1:$F$93,SMALL(IF('Resumen de calificaciones'!$G$1:$G$93<=$C$12,ROW('Resumen de calificaciones'!$G$1:$G$93)),ROW(36:36))),\"\")","v":0}]
[null,null,null,null,35,{"$f":"IFERROR(INDEX('Resumen de calificaciones'!$F$1:$F$93,SMALL(IF('Resumen de calificaciones'!$G$1:$G$93<=$C$12,ROW('Resumen de calificaciones'!$G$1:$G$93)),ROW(37:37))),\"\")","v":0}]
[null,null,null,null,36,{"$f":"IFERROR(INDEX('Resumen de calificaciones'!$F$1:$F$93,SMALL(IF('Resumen de calificaciones'!$G$1:$G$93<=$C$12,ROW('Resumen de calificaciones'!$G$1:$G$93)),ROW(38:38))),\"\")","v":0}]
[null,null,null,null,37,{"$f":"IFERROR(INDEX('Resumen de calificaciones'!$F$1:$F$93,SMALL(IF('Resumen de calificaciones'!$G$1:$G$93<=$C$12,ROW('Resumen de calificaciones'!$G$1:$G$93)),ROW(39:39))),\"\")","v":0}]
[null,null,null,null,38,{"$f":"IFERROR(INDEX('Resumen de calificaciones'!$F$1:$F$93,SMALL(IF('Resumen de calificaciones'!$G$1:$G$93<=$C$12,ROW('Resumen de calificaciones'!$G$1:$G$93)),ROW(40:40))),\"\")","v":0}]
[null,null,null,null,39,{"$f":"IFERROR(INDEX('Resumen de calificaciones'!$F$1:$F$93,SMALL(IF('Resumen de calificaciones'!$G$1:$G$93<=$C$12,ROW('Resumen de calificaciones'!$G$1:$G$93)),ROW(41:41))),\"\")","v":0}]
[null,null,null,null,40,{"$f":"IFERROR(INDEX('Resumen de calificaciones'!$F$1:$F$93,SMALL(IF('Resumen de calificaciones'!$G$1:$G$93<=$C$12,ROW('Resumen de calificaciones'!$G$1:$G$93)),ROW(42:42))),\"\")","v":0}]
[null,null,null,null,41,{"$f":"IFERROR(INDEX('Resumen de calificaciones'!$F$1:$F$93,SMALL(IF('Resumen de calificaciones'!$G$1:$G$93<=$C$12,ROW('Resumen de calificaciones'!$G$1:$G$93)),ROW(43:43))),\"\")","v":0}]
[null,null,null,null,42,{"$f":"IFERROR(INDEX('Resumen de calificaciones'!$F$1:$F$93,SMALL(IF('Resumen de calificaciones'!$G$1:$G$93<=$C$12,ROW('Resumen de calificaciones'!$G$1:$G$93)),ROW(44:44))),\"\")","v":0}]
[null,null,null,null,43,{"$f":"IFERROR(INDEX('Resumen de calificaciones'!$F$1:$F$93,SMALL(IF('Resumen de calificaciones'!$G$1:$G$93<=$C$12,ROW('Resumen de calificaciones'!$G$1:$G$93)),ROW(45:45))),\"\")","v":0}]
[null,null,null,null,44,{"$f":"IFERROR(INDEX('Resumen de calificaciones'!$F$1:$F$93,SMALL(IF('Resumen de calificaciones'!$G$1:$G$93<=$C$12,ROW('Resumen de calificaciones'!$G$1:$G$93)),ROW(46:46))),\"\")","v":0}]
[null,null,null,null,45,{"$f":"IFERROR(INDEX('Resumen de calificaciones'!$F$1:$F$93,SMALL(IF('Resumen de calificaciones'!$G$1:$G$93<=$C$12,ROW('Resumen de calificaciones'!$G$1:$G$93)),ROW(47:47))),\"\")","v":0}]
[null,null,null,null,46,{"$f":"IFERROR(INDEX('Resumen de calificaciones'!$F$1:$F$93,SMALL(IF('Resumen de calificaciones'!$G$1:$G$93<=$C$12,ROW('Resumen de calificaciones'!$G$1:$G$93)),ROW(48:48))),\"\")","v":0}]
[null,null,null,null,47,{"$f":"IFERROR(INDEX('Resumen de calificaciones'!$F$1:$F$93,SMALL(IF('Resumen de calificaciones'!$G$1:$G$93<=$C$12,ROW('Resumen de calificaciones'!$G$1:$G$93)),ROW(49:49))),\"\")","v":0}]
[null,null,null,null,48,{"$f":"IFERROR(INDEX('Resumen de calificaciones'!$F$1:$F$93,SMALL(IF('Resumen de calificaciones'!$G$1:$G$93<=$C$12,ROW('Resumen de calificaciones'!$G$1:$G$93)),ROW(50:50))),\"\")","v":0}]
[null,null,null,null,49,{"$f":"IFERROR(INDEX('Resumen de calificaciones'!$F$1:$F$93,SMALL(IF('Resumen de calificaciones'!$G$1:$G$93<=$C$12,ROW('Resumen de calificaciones'!$G$1:$G$93)),ROW(51:51))),\"\")","v":0}]
[null,null,null,null,50,{"$f":"IFERROR(INDEX('Resumen de calificaciones'!$F$1:$F$93,SMALL(IF('Resumen de calificaciones'!$G$1:$G$93<=$C$12,ROW('Resumen de calificaciones'!$G$1:$G$93)),ROW(52:52))),\"\")","v":0}]

{"sheet":"Bibliografía","index":9,"n_rows":29,"n_cols":4,"rows_kept":29,"cut":false,"hidden":false,"merged":[[1,2,1,3]]}
[]
[null,null,"Bibliografía"]
[null,null,1,"CDC (2017). Directrices de PrEP: suplemento para proveedores de CDC"]
[null,null,2,"OMS (2016). Directrices consolidadas sobre el uso de medicamentos antirretrovirales para tratar y prevenir la infección por el VIH"]
[null,null,3,"WHO (2017). Herramienta de implementación para la profilaxis previa a la exposición de la infección por VIH"]
[null,null,4,"OPCIONES (2019). Paquete de formación para proveedores: administración efectiva de PrEP oral para chicas adolescentes y mujeres jóvenes"]
[null,null,5,"OPCIONES (2019). Herramienta PrEP-it"]
[null,null,6,"OMS (2016). Recomendaciones para un enfoque de salud pública - Segunda edición"]
[null,null,7,"ONUSIDA (2017). Hoja de ruta para la prevención del VIH 2020"]
[null,null,8,"ONUSIDA (2005). Directrices para la gestión de la cadena de suministro del VIH"]
[null,null,9,"OMS (2015). Buenas prácticas para la distribución de productos farmacéuticos de la OMS"]
[null,null,10,"OMS (2017). Herramienta de la OMS para la implementación de la profilaxis preexposición a la infección por VIH"]
[null,null,11,"OMS (2019) ¿Qué es el 2+1+1? Profilaxis oral preexposición por eventos concretos para prevenir el VIH en hombres que tienen relaciones sexuales con hombres: actualización de la recomendación de la OMS sobre la PrEP oral"]
[null,null,12,"OMS (2021) Recomendaciones actualizadas sobre la prevención del VIH, el diagnóstico infantil, el inicio y el seguimiento de los tratamientos antirretrovirales"]
[null,null,13,"OMS (2020) Vigilancia de la resistencia a los medicamentos contra el VIH en países que amplían la profilaxis preexposición"]
[null,null,14,"OMS (2020) Directrices consolidadas de información estratégica sobre el VIH: impulsar el impacto a través del seguimiento y la gestión de los programas"]
[null,null,15,"PEPFAR (2020) Monitoring, Evaluation, and Reporting Indicator Reference Guide - MER 2.0 (versión 2.5)"]
[null,null,16,"OMS (2019) Prevención y control de las infecciones de transmisión sexual (ITS) en la era de la profilaxis oral preexposición (PrEP) al VIH"]
[null,null,17,"ONUSIDA pone fin a las desigualdades. Poner fin al sida. Estrategia mundial sobre el sida 2021-2026"]
[null,null,18,"OMS (2018) Herramienta de implementación para la profilaxis preexposición (PrEP) a la infección por VIH. Módulo 12: adolescentes y adultos jóvenes"]
[null,null,19,"PrEP Learning Network (2019) Definir los objetivos de la PrEP "]
[null,null,20,"ONUSIDA (2019) Fichas de puntuación y carteles de los países de la Coalición Mundial para la Prevención del VIH"]
[null,null,21,"Programa Conjunto de las Naciones Unidas sobre el VIH/Sida. (2020). Mantener y priorizar los servicios de prevención del VIH en el contexto de la COVID-19."]
[null,null,22,"Programa Conjunto de las Naciones Unidas sobre el VIH/Sida. (2020). Condones y lubricantes en el contexto de la COVID-19. Mantenimiento de suministros y enfoques centrados en las personas para satisfacer la necesidad en países de ingresos bajos y medios."]
[null,null,23,"Programa Conjunto de las Naciones Unidas sobre el VIH/Sida. (2020). ONUSIDA destaca seis acciones fundamentales para poner la igualdad de género en el centro de las respuestas a la COVID-19. "]
[null,null,24,"Programa Conjunto de las Naciones Unidas sobre el VIH/Sida. (2020). Strategic Considerations for Mitigating the Impact of COVID-19 on Key-Population-Focused HIV Programs."]
[null,null,25,"Programa Conjunto de las Naciones Unidas sobre el VIH/Sida. (2020). Preventing HIV and other STIs among women and girls using contraceptive services in contexts with high HIV incidence. "]
[null,null,26,"Programa Conjunto de las Naciones Unidas sobre el VIH/Sida. (2021). Going Online: A Budgeting and Programming Aid for Virtual HIV Interventions. "]
[null,null,27,"ONUSIDA. (2019)  Fichas de puntuación y carteles de prevención de los países de la Coalición Mundial para la Prevención del VIH"]

{"sheet":"Acrónimos","index":10,"n_rows":39,"n_cols":4,"rows_kept":39,"cut":false,"hidden":false,"merged":[[1,2,1,8]]}
[]
[null,null,"Acrónimos"]
[]
[null,null,"AGYW","Chicas adolescentes y mujeres jóvenes "]
[null,null,"AID","Anillo intravaginal de dapivirina"]
[null,null,"APH","Asesoramiento y pruebas del VIH"]
[null,null,"APost","Atención postnatal"]
[null,null,"APre","Atención prenatal"]
[null,null,"CMMV","Circuncisión Médica Masculina Voluntaria"]
[null,null,"CrCl","Prueba de aclaramiento de creatinina"]
[null,null,"CV","Carga viral"]
[null,null,"GTT","Grupo técnico de trabajo "]
[null,null,"HSH","Hombres que tienen sexo con hombres "]
[null,null,"ITS ","Infección de transmisión sexual"]
[null,null,"LME","Lista de medicamentos esenciales"]
[null,null,"MAR","Medicamentos antirretrovirales"]
[null,null,"OMS","Organización Mundial de la Salud "]
[null,null,"ONUSIDA","Programa Conjunto de las Naciones Unidas sobre el VIH/Sida "]
[null,null,"PAT","Plan de asistencia técnica"]
[null,null,"PC","Poblaciones clave "]
[null,null,"PEN","Plan estratégico nacional"]
[null,null,"PEPFAR","Plan de Emergencia del Presidente de los Estados Unidos para el Alivio del Sida"]
[null,null,"PF","Planificación familiar"]
[null,null,"PrEP","Profilaxis preexposición"]
[null,null,"PSAT","Herramienta de autoevaluación de los programas de prevención"]
[null,null,"PVVIH","Personas que viven con el VIH"]
[null,null,"RA","Reacción adversa"]
[null,null,"RAG","Reacción adversa grave "]
[null,null,"RR. HH.","Recursos humanos"]
[null,null,"SIGL","Sistema de información de gestión logística"]
[null,null,"SIGS","Sistema de información de gestión de la salud"]
[null,null,"SSR","Salud sexual y reproductiva"]
[null,null,"SyE","Seguimiento y evaluación"]
[null,null,"TAR","Terapia antirretroviral"]
[null,null,"TR","Términos de referencia"]
[null,null,"TSF","Trabajadora sexual femenina"]
[null,null,"USAID","Agencia de EE. UU. para el Desarrollo Internacional"]
[null,null,"VHB","Virus de la hepatitis B "]
[null,null,"VHC","Virus de la hepatitis C "]